[Event "*** Titled Tuesday Blitz"]
[Site "Chess.com"]
[Date "2021.04.20"]
[Round "7"]
[White "MFBerna"]
[Black "fabianvivasz"]
[Result "1-0"]
[WhiteElo "2508"]
[BlackElo "2340"]
[TimeControl "180+1"]
[EndTime "11:17:07 PDT"]
[Termination "MFBerna won by resignation"]

1. d4 {[%clk 0:02:59.9]} 1... Nf6 {[%clk 0:02:58.4]} 2. Nf3 {[%clk 0:02:59.7]}
2... g6 {[%clk 0:02:57.6]} 3. g3 {[%clk 0:02:59.2]} 3... Bg7 {[%clk 0:02:57.9]}
4. Bg2 {[%clk 0:02:58.9]} 4... O-O {[%clk 0:02:58.4]} 5. O-O {[%clk 0:02:59.4]}
5... d5 {[%clk 0:02:56.6]} 6. b3 {[%clk 0:02:55]} 6... a5 {[%clk 0:02:36.4]} 7.
a3 {[%clk 0:02:52.6]} 7... b6 {[%clk 0:02:21]} 8. Bb2 {[%clk 0:02:50.5]} 8... a4
{[%clk 0:02:11.2]} 9. b4 {[%clk 0:02:50.4]} 9... Ba6 {[%clk 0:02:08.2]} 10. Ne5
{[%clk 0:02:47.5]} 10... Nfd7 {[%clk 0:01:48.2]} 11. Bxd5 {[%clk 0:02:26.6]}
11... Nxe5 {[%clk 0:01:47.7]} 12. dxe5 {[%clk 0:02:16.4]} 12... c6 {[%clk
0:01:19]} 13. Bf3 {[%clk 0:02:15.2]} 13... Qc7 {[%clk 0:01:18.5]} 14. Qd4 {[%clk
0:01:47.2]} 14... Nd7 {[%clk 0:01:14.3]} 15. Qe4 {[%clk 0:01:28.7]} 15... Nxe5
{[%clk 0:01:09.5]} 16. Nc3 {[%clk 0:01:18.5]} 16... Nxf3+ {[%clk 0:01:07.7]} 17.
Qxf3 {[%clk 0:01:19.4]} 17... Rad8 {[%clk 0:00:58.1]} 18. Nxa4 {[%clk
0:01:14.2]} 18... Bxb2 {[%clk 0:00:50.6]} 19. Nxb2 {[%clk 0:01:15.1]} 19... Rd2
{[%clk 0:00:46.5]} 20. Nd3 {[%clk 0:01:15.1]} 20... Rxc2 {[%clk 0:00:45.2]} 21.
Rfc1 {[%clk 0:01:11.9]} 21... Rxc1+ {[%clk 0:00:39.3]} 22. Rxc1 {[%clk
0:01:12.8]} 22... Bb5 {[%clk 0:00:36.4]} 23. Qe3 {[%clk 0:01:06]} 23... Ra8
{[%clk 0:00:32.4]} 24. Nf4 {[%clk 0:01:00.9]} 24... Qd6 {[%clk 0:00:23.5]} 25.
h4 {[%clk 0:00:50.2]} 25... e5 {[%clk 0:00:19.9]} 26. Nh3 {[%clk 0:00:38.5]}
26... Qd4 {[%clk 0:00:19.9]} 27. Rc3 {[%clk 0:00:29.5]} 27... f6 {[%clk
0:00:13.9]} 28. Kg2 {[%clk 0:00:21.3]} 28... c5 {[%clk 0:00:12.1]} 29. bxc5
{[%clk 0:00:20.6]} 29... Bc6+ {[%clk 0:00:07.8]} 30. f3 {[%clk 0:00:19.3]} 30...
Qxe3 {[%clk 0:00:02.4]} 31. Rxe3 {[%clk 0:00:18.8]} 31... bxc5 {[%clk
0:00:03.3]} 32. Rc3 {[%clk 0:00:18.9]} 32... Ra5 {[%clk 0:00:03.5]} 33. Nf2
{[%clk 0:00:18.7]} 33... Kf7 {[%clk 0:00:03.8]} 34. Nd3 {[%clk 0:00:18.7]} 34...
Bb5 {[%clk 0:00:03]} 35. Rxc5 {[%clk 0:00:16.7]} 35... Ke6 {[%clk 0:00:03]} 36.
a4 {[%clk 0:00:14.9]} 36... Bxd3 {[%clk 0:00:02.4]} 37. Rxa5 {[%clk 0:00:14.8]}
37... Bxe2 {[%clk 0:00:03.2]} 38. Ra7 {[%clk 0:00:13.9]} 38... h5 {[%clk
0:00:03.1]} 39. Kf2 {[%clk 0:00:13]} 39... Bc4 {[%clk 0:00:02.9]} 40. a5 {[%clk
0:00:13.1]} 40... Kf5 {[%clk 0:00:03]} 41. Ke3 {[%clk 0:00:13.1]} 41... Bf1
{[%clk 0:00:01.9]} 42. a6 {[%clk 0:00:10.5]} 42... Ke6 {[%clk 0:00:02.8]} 43.
Ra8 {[%clk 0:00:10]} 43... f5 {[%clk 0:00:02.1]} 44. a7 {[%clk 0:00:09.8]} 44...
Ke7 {[%clk 0:00:01.8]} 45. Rg8 {[%clk 0:00:09.2]} 1-0

[Event "*** Titled Tuesday Blitz"]
[Site "Chess.com"]
[Date "2021.04.20"]
[Round "7"]
[White "UnknownxArmy"]
[Black "Nikolaj_6"]
[Result "0-1"]
[WhiteElo "2477"]
[BlackElo "2618"]
[TimeControl "180+1"]
[EndTime "11:17:08 PDT"]
[Termination "Nikolaj_6 won on time"]

1. d4 {[%clk 0:03:00.9]} 1... Nf6 {[%clk 0:03:00]} 2. c4 {[%clk 0:03:01.2]} 2...
e6 {[%clk 0:02:59.9]} 3. g3 {[%clk 0:03:01.7]} 3... c5 {[%clk 0:02:58.6]} 4. d5
{[%clk 0:03:01.8]} 4... exd5 {[%clk 0:02:59.5]} 5. cxd5 {[%clk 0:03:02.7]} 5...
d6 {[%clk 0:02:59.5]} 6. Nc3 {[%clk 0:03:03.3]} 6... g6 {[%clk 0:02:59.8]} 7.
Bg2 {[%clk 0:03:04]} 7... Bg7 {[%clk 0:03:00.2]} 8. Nf3 {[%clk 0:03:04.7]} 8...
O-O {[%clk 0:03:00.3]} 9. O-O {[%clk 0:03:05.4]} 9... Re8 {[%clk 0:03:00.5]} 10.
Bf4 {[%clk 0:03:05.4]} 10... a6 {[%clk 0:02:59.9]} 11. a4 {[%clk 0:03:05.2]}
11... Nh5 {[%clk 0:03:00.1]} 12. Bg5 {[%clk 0:03:02.8]} 12... Qc7 {[%clk
0:02:59.8]} 13. Qd2 {[%clk 0:02:54.4]} 13... Nd7 {[%clk 0:02:58.6]} 14. Rfc1
{[%clk 0:02:53.5]} 14... Ndf6 {[%clk 0:02:41.6]} 15. Ne1 {[%clk 0:02:25]} 15...
Bf5 {[%clk 0:02:09.6]} 16. h3 {[%clk 0:02:12.8]} 16... Ne4 {[%clk 0:02:06.2]}
17. Nxe4 {[%clk 0:02:04]} 17... Bxe4 {[%clk 0:02:06.3]} 18. f3 {[%clk
0:02:00.8]} 18... Nxg3 {[%clk 0:01:46]} 19. fxe4 {[%clk 0:01:58.7]} 19... Nxe4
{[%clk 0:01:46.1]} 20. Bxe4 {[%clk 0:01:51.6]} 20... Rxe4 {[%clk 0:01:47]} 21.
Nf3 {[%clk 0:01:51.6]} 21... Rae8 {[%clk 0:01:45.7]} 22. Re1 {[%clk 0:01:43.3]}
22... Qd7 {[%clk 0:01:41.7]} 23. Kg2 {[%clk 0:01:19]} 23... Qf5 {[%clk
0:01:31.1]} 24. Bh4 {[%clk 0:00:49.4]} 24... Bd4 {[%clk 0:01:01.5]} 25. Rad1
{[%clk 0:00:34.7]} 25... Rxh4 {[%clk 0:00:58.4]} 26. Nxh4 {[%clk 0:00:32.4]}
26... Qf2+ {[%clk 0:00:58.1]} 27. Kh1 {[%clk 0:00:30.2]} 27... Qxh4 {[%clk
0:00:57.7]} 28. e3 {[%clk 0:00:07.6]} 28... Qxh3+ {[%clk 0:00:37.9]} 29. Qh2
{[%clk 0:00:07.2]} 29... Qxh2+ {[%clk 0:00:38.2]} 30. Kxh2 {[%clk 0:00:07.5]}
30... Bxb2 {[%clk 0:00:37.3]} 31. Rb1 {[%clk 0:00:06.4]} 31... Be5+ {[%clk
0:00:36.9]} 32. Kg2 {[%clk 0:00:06.3]} 32... Re7 {[%clk 0:00:36.6]} 33. Rb6
{[%clk 0:00:06.4]} 33... c4 {[%clk 0:00:34.4]} 34. Reb1 {[%clk 0:00:06.6]} 34...
Rc7 {[%clk 0:00:30.3]} 35. Rxb7 {[%clk 0:00:06.4]} 35... Rc5 {[%clk 0:00:30.4]}
36. e4 {[%clk 0:00:05.1]} 36... c3 {[%clk 0:00:30.6]} 37. Rc1 {[%clk 0:00:05.4]}
37... Rc4 {[%clk 0:00:27.8]} 38. Kf3 {[%clk 0:00:04.3]} 38... Rxa4 {[%clk
0:00:27.6]} 39. Rc2 {[%clk 0:00:04.5]} 39... h5 {[%clk 0:00:25.9]} 40. Rb8+
{[%clk 0:00:04.8]} 40... Kg7 {[%clk 0:00:25.8]} 41. Rb7 {[%clk 0:00:05.5]} 41...
g5 {[%clk 0:00:22.4]} 42. Rd7 {[%clk 0:00:05.2]} 42... g4+ {[%clk 0:00:21.6]}
43. Ke3 {[%clk 0:00:05.8]} 43... g3 {[%clk 0:00:19.3]} 44. Rc7 {[%clk
0:00:03.1]} 44... h4 {[%clk 0:00:18.9]} 45. Rd7 {[%clk 0:00:03.2]} 45... h3
{[%clk 0:00:18.5]} 46. Rc7 {[%clk 0:00:03.4]} 46... h2 {[%clk 0:00:16.2]} 47.
Rc1 {[%clk 0:00:02.8]} 47... g2 {[%clk 0:00:16.5]} 0-1

[Event "*** Titled Tuesday Blitz"]
[Site "Chess.com"]
[Date "2021.04.20"]
[Round "7"]
[White "topin8"]
[Black "Politov_Pavel"]
[Result "1-0"]
[WhiteElo "2205"]
[BlackElo "2321"]
[TimeControl "180+1"]
[EndTime "11:17:08 PDT"]
[Termination "topin8 won on time"]

1. e4 {[%clk 0:02:59.3]} 1... e5 {[%clk 0:02:59]} 2. Nf3 {[%clk 0:02:59.1]} 2...
Nc6 {[%clk 0:02:59.5]} 3. Bc4 {[%clk 0:02:58.8]} 3... Bc5 {[%clk 0:02:59.4]} 4.
c3 {[%clk 0:02:58.8]} 4... Nf6 {[%clk 0:02:59.8]} 5. d3 {[%clk 0:02:59.2]} 5...
d6 {[%clk 0:02:59.6]} 6. Nbd2 {[%clk 0:02:54.9]} 6... h6 {[%clk 0:02:59]} 7. a4
{[%clk 0:02:53.3]} 7... a6 {[%clk 0:02:57.8]} 8. h3 {[%clk 0:02:42.3]} 8... O-O
{[%clk 0:02:57.7]} 9. O-O {[%clk 0:02:41.8]} 9... Ba7 {[%clk 0:02:56.4]} 10. Bb3
{[%clk 0:02:40.9]} 10... Be6 {[%clk 0:02:56]} 11. Re1 {[%clk 0:02:40.6]} 11...
Qd7 {[%clk 0:02:55.8]} 12. Nf1 {[%clk 0:02:38.7]} 12... Bxh3 {[%clk 0:02:46]}
13. gxh3 {[%clk 0:02:38.3]} 13... Qxh3 {[%clk 0:02:46.6]} 14. N3h2 {[%clk
0:02:35.8]} 14... Ne7 {[%clk 0:02:30.7]} 15. Qf3 {[%clk 0:02:32.8]} 15... Qh4
{[%clk 0:02:24]} 16. Qg3 {[%clk 0:02:24.2]} 16... Qxg3+ {[%clk 0:02:17.7]} 17.
Nxg3 {[%clk 0:02:23.4]} 17... Ng6 {[%clk 0:02:18.3]} 18. Be3 {[%clk 0:02:21.2]}
18... h5 {[%clk 0:01:59]} 19. Bxa7 {[%clk 0:02:14.4]} 19... Rxa7 {[%clk
0:01:57.9]} 20. a5 {[%clk 0:02:14.1]} 20... Nf4 {[%clk 0:01:53.8]} 21. Rad1
{[%clk 0:02:11.4]} 21... b6 {[%clk 0:01:50.2]} 22. axb6 {[%clk 0:02:07.3]} 22...
Rb7 {[%clk 0:01:49.6]} 23. Bc4 {[%clk 0:02:04.6]} 23... Rxb6 {[%clk 0:01:49.2]}
24. b4 {[%clk 0:02:04.9]} 24... Ra8 {[%clk 0:01:18.4]} 25. Ra1 {[%clk
0:02:02.6]} 25... c6 {[%clk 0:01:14]} 26. Ra5 {[%clk 0:01:26.2]} 26... d5 {[%clk
0:01:10.2]} 27. exd5 {[%clk 0:01:20.3]} 27... cxd5 {[%clk 0:01:10.5]} 28. Ba2
{[%clk 0:01:19.2]} 28... Nxd3 {[%clk 0:01:09.6]} 29. Re3 {[%clk 0:01:12.8]}
29... Nf4 {[%clk 0:00:29.4]} 30. Rxe5 {[%clk 0:01:10.7]} 30... Rc8 {[%clk
0:00:24.9]} 31. Rc5 {[%clk 0:00:50.9]} 31... Rxc5 {[%clk 0:00:21.7]} 32. bxc5
{[%clk 0:00:50.8]} 32... Rc6 {[%clk 0:00:22.1]} 33. Rf5 {[%clk 0:00:37.4]} 33...
Nd3 {[%clk 0:00:19.5]} 34. Nxh5 {[%clk 0:00:32]} 34... Rxc5 {[%clk 0:00:19]} 35.
Nxf6+ {[%clk 0:00:30.1]} 35... gxf6 {[%clk 0:00:19.3]} 36. Rxd5 {[%clk
0:00:29.4]} 36... Rxc3 {[%clk 0:00:16.3]} 37. Ng4 {[%clk 0:00:27.4]} 37... f5
{[%clk 0:00:15.2]} 38. Rxf5 {[%clk 0:00:24.1]} 38... Rc7 {[%clk 0:00:12.6]} 39.
Bxf7+ {[%clk 0:00:22.5]} 39... Kg7 {[%clk 0:00:09.9]} 40. Bd5 {[%clk 0:00:19.3]}
40... a5 {[%clk 0:00:09.5]} 41. Be4 {[%clk 0:00:18.2]} 41... Nb4 {[%clk
0:00:06.3]} 42. Rg5+ {[%clk 0:00:17.8]} 42... Kf7 {[%clk 0:00:05.8]} 43. Rxa5
{[%clk 0:00:18.3]} 43... Rc1+ {[%clk 0:00:04.7]} 44. Kg2 {[%clk 0:00:17.9]}
44... Rb1 {[%clk 0:00:02.6]} 45. Ra7+ {[%clk 0:00:17.5]} 45... Ke6 {[%clk
0:00:01.5]} 46. Rb7 {[%clk 0:00:17.7]} 1-0

[Event "*** Titled Tuesday Blitz"]
[Site "Chess.com"]
[Date "2021.04.20"]
[Round "7"]
[White "catzapto"]
[Black "Klavdia_Nik"]
[Result "1-0"]
[WhiteElo "2104"]
[BlackElo "2036"]
[TimeControl "180+1"]
[EndTime "11:17:08 PDT"]
[Termination "catzapto won on time"]

1. e4 {[%clk 0:03:00.9]} 1... c5 {[%clk 0:02:56.5]} 2. Nf3 {[%clk 0:03:00]} 2...
d6 {[%clk 0:02:50.4]} 3. c3 {[%clk 0:02:57.9]} 3... g6 {[%clk 0:02:35.8]} 4. d4
{[%clk 0:02:56.6]} 4... cxd4 {[%clk 0:02:35.7]} 5. cxd4 {[%clk 0:02:57.5]} 5...
Bg7 {[%clk 0:02:35.4]} 6. Nc3 {[%clk 0:02:57.8]} 6... Nf6 {[%clk 0:02:27.7]} 7.
Bc4 {[%clk 0:02:45]} 7... O-O {[%clk 0:02:25.6]} 8. h3 {[%clk 0:02:45.4]} 8...
a6 {[%clk 0:02:25]} 9. O-O {[%clk 0:02:45.2]} 9... b5 {[%clk 0:02:24.8]} 10. Bd3
{[%clk 0:02:44.4]} 10... Bb7 {[%clk 0:02:24.8]} 11. Re1 {[%clk 0:02:44.1]} 11...
Nc6 {[%clk 0:02:11.2]} 12. e5 {[%clk 0:02:40.7]} 12... dxe5 {[%clk 0:02:08.9]}
13. dxe5 {[%clk 0:02:41.6]} 13... Nd5 {[%clk 0:02:01.5]} 14. Nxd5 {[%clk
0:02:27.7]} 14... Qxd5 {[%clk 0:02:00.5]} 15. Be4 {[%clk 0:02:28.3]} 15... Qxd1
{[%clk 0:01:56.5]} 16. Rxd1 {[%clk 0:02:29.2]} 16... Na5 {[%clk 0:01:29.7]} 17.
Bxb7 {[%clk 0:02:25.1]} 17... Nxb7 {[%clk 0:01:30.6]} 18. Rd7 {[%clk 0:02:25.8]}
18... Nc5 {[%clk 0:01:24.6]} 19. Rxe7 {[%clk 0:02:25]} 19... Nd3 {[%clk
0:01:17]} 20. e6 {[%clk 0:01:11.6]} 20... fxe6 {[%clk 0:00:55.3]} 21. Rxe6
{[%clk 0:01:12.5]} 21... Nxb2 {[%clk 0:00:39.3]} 22. Bxb2 {[%clk 0:01:12.4]}
22... Bxb2 {[%clk 0:00:38.6]} 23. Rb1 {[%clk 0:01:12.1]} 23... Bf6 {[%clk
0:00:37.2]} 24. Ne5 {[%clk 0:00:50.8]} 24... Bxe5 {[%clk 0:00:33.7]} 25. Rxe5
{[%clk 0:00:50.4]} 25... Rf4 {[%clk 0:00:15]} 26. Re7 {[%clk 0:00:46.8]} 26...
Rf7 {[%clk 0:00:12.2]} 27. Re6 {[%clk 0:00:45.9]} 27... Rb7 {[%clk 0:00:11.3]}
28. Rbe1 {[%clk 0:00:40.4]} 28... Kf7 {[%clk 0:00:11.3]} 29. R6e3 {[%clk
0:00:35.5]} 29... a5 {[%clk 0:00:11.2]} 30. Rf3+ {[%clk 0:00:35.8]} 30... Kg7
{[%clk 0:00:10.7]} 31. Rfe3 {[%clk 0:00:32]} 31... Raa7 {[%clk 0:00:10.8]} 32.
Rb3 {[%clk 0:00:27.6]} 32... b4 {[%clk 0:00:10.4]} 33. Reb1 {[%clk 0:00:27.5]}
33... Rc7 {[%clk 0:00:08.3]} 34. a3 {[%clk 0:00:26.6]} 34... bxa3 {[%clk
0:00:08.3]} 35. Rxa3 {[%clk 0:00:27.1]} 35... a4 {[%clk 0:00:07.5]} 36. Rb4
{[%clk 0:00:24.4]} 36... Rc1+ {[%clk 0:00:04.4]} 37. Kh2 {[%clk 0:00:24.3]}
37... Rc2 {[%clk 0:00:05]} 38. Kg3 {[%clk 0:00:23.9]} 38... Rf7 {[%clk
0:00:01.9]} 39. Rbxa4 {[%clk 0:00:21.6]} 39... Rfxf2 {[%clk 0:00:01.4]} 40. Ra7+
{[%clk 0:00:20.6]} 40... Kh6 {[%clk 0:00:01.7]} 41. R3a4 {[%clk 0:00:10.3]}
41... Rxg2+ {[%clk 0:00:01.7]} 42. Kf3 {[%clk 0:00:11.2]} 42... g5 {[%clk
0:00:01.9]} 43. R4a6+ {[%clk 0:00:10.6]} 1-0

[Event "*** Titled Tuesday Blitz"]
[Site "Chess.com"]
[Date "2021.04.20"]
[Round "7"]
[White "OlifantCZ"]
[Black "Qvalda"]
[Result "1-0"]
[WhiteElo "2269"]
[BlackElo "2417"]
[TimeControl "180+1"]
[EndTime "11:17:11 PDT"]
[Termination "OlifantCZ won on time"]

1. c4 {[%clk 0:03:00.9]} 1... d6 {[%clk 0:02:58]} 2. g3 {[%clk 0:03:00.8]} 2...
g6 {[%clk 0:02:58.6]} 3. Bg2 {[%clk 0:03:01.2]} 3... Bg7 {[%clk 0:02:59.5]} 4.
Nc3 {[%clk 0:03:01.5]} 4... e5 {[%clk 0:03:00]} 5. e4 {[%clk 0:03:01.4]} 5...
Nc6 {[%clk 0:02:57.6]} 6. d3 {[%clk 0:03:01.2]} 6... Nd4 {[%clk 0:02:57.9]} 7.
Nge2 {[%clk 0:03:01.2]} 7... c5 {[%clk 0:02:58.4]} 8. Nxd4 {[%clk 0:02:59.6]}
8... cxd4 {[%clk 0:02:56.7]} 9. Ne2 {[%clk 0:02:59.4]} 9... Nf6 {[%clk
0:02:54.2]} 10. O-O {[%clk 0:02:59.5]} 10... O-O {[%clk 0:02:54.1]} 11. b4
{[%clk 0:02:58.7]} 11... a5 {[%clk 0:02:51.7]} 12. b5 {[%clk 0:02:58.6]} 12...
Nd7 {[%clk 0:02:45.5]} 13. a4 {[%clk 0:02:56.1]} 13... b6 {[%clk 0:02:42.9]} 14.
Ba3 {[%clk 0:02:51.7]} 14... Nc5 {[%clk 0:02:43.3]} 15. f4 {[%clk 0:02:49.1]}
15... f5 {[%clk 0:02:37.2]} 16. Bxc5 {[%clk 0:02:45.7]} 16... dxc5 {[%clk
0:02:31.5]} 17. exf5 {[%clk 0:02:37]} 17... Ra7 {[%clk 0:02:31.2]} 18. Bd5+
{[%clk 0:02:36.1]} 18... Kh8 {[%clk 0:02:30]} 19. fxg6 {[%clk 0:02:35.3]} 19...
hxg6 {[%clk 0:02:29.9]} 20. fxe5 {[%clk 0:02:34.5]} 20... Bxe5 {[%clk
0:02:24.6]} 21. Qd2 {[%clk 0:02:33.6]} 21... Kg7 {[%clk 0:02:17.1]} 22. Nf4
{[%clk 0:02:32.3]} 22... Re7 {[%clk 0:01:47.8]} 23. Be4 {[%clk 0:02:23.2]} 23...
Bxf4 {[%clk 0:01:22]} 24. Rxf4 {[%clk 0:02:21.3]} 24... Ref7 {[%clk 0:01:17.2]}
25. Raf1 {[%clk 0:02:19.7]} 25... Qe7 {[%clk 0:00:59.7]} 26. Rxf7+ {[%clk
0:02:15.1]} 26... Rxf7 {[%clk 0:00:59]} 27. Rxf7+ {[%clk 0:02:15.4]} 27... Qxf7
{[%clk 0:00:56.5]} 28. Qg5 {[%clk 0:02:13.6]} 28... Qf6 {[%clk 0:00:41.9]} 29.
Qf4 {[%clk 0:02:02.4]} 29... Bh3 {[%clk 0:00:26.7]} 30. Kf2 {[%clk 0:01:56.5]}
30... g5 {[%clk 0:00:18.9]} 31. Qxf6+ {[%clk 0:01:50.4]} 31... Kxf6 {[%clk
0:00:19.8]} 32. Bg2 {[%clk 0:01:49.9]} 32... Bf5 {[%clk 0:00:19.5]} 33. Bf1
{[%clk 0:01:46.3]} 33... g4 {[%clk 0:00:16.3]} 34. Be2 {[%clk 0:01:39]} 34...
Kg5 {[%clk 0:00:15.4]} 35. Kg2 {[%clk 0:01:38.2]} 35... Be6 {[%clk 0:00:12.3]}
36. Kf2 {[%clk 0:01:35.1]} 36... Bf5 {[%clk 0:00:12.2]} 37. Bf1 {[%clk 0:01:35]}
37... Be6 {[%clk 0:00:10.4]} 38. Ke2 {[%clk 0:01:35.2]} 38... Bf5 {[%clk
0:00:09.3]} 39. Bg2 {[%clk 0:01:35.5]} 39... Be6 {[%clk 0:00:09.3]} 40. Be4
{[%clk 0:01:35.5]} 40... Bd7 {[%clk 0:00:09.3]} 41. Kf2 {[%clk 0:01:30.8]} 41...
Bc8 {[%clk 0:00:09.4]} 42. Kg1 {[%clk 0:01:04.1]} 42... Bd7 {[%clk 0:00:09.4]}
43. Bg2 {[%clk 0:01:02.8]} 43... Bf5 {[%clk 0:00:09.2]} 44. Bf1 {[%clk
0:01:02.7]} 44... Be6 {[%clk 0:00:06.7]} 45. h4+ {[%clk 0:00:52.9]} 45... gxh3
{[%clk 0:00:06.4]} 46. Be2 {[%clk 0:00:52]} 46... Bf5 {[%clk 0:00:05]} 47. Bf1
{[%clk 0:00:49.5]} 47... Kg4 {[%clk 0:00:02.7]} 48. Kh2 {[%clk 0:00:44.9]} 48...
Kf3 {[%clk 0:00:02.8]} 49. Bxh3 {[%clk 0:00:45.1]} 49... Bxd3 {[%clk 0:00:03]}
50. Be6 {[%clk 0:00:42.3]} 50... Bg6 {[%clk 0:00:01.9]} 51. Kh3 {[%clk
0:00:40.4]} 51... d3 {[%clk 0:00:02.2]} 52. Kh4 {[%clk 0:00:40.8]} 52... d2
{[%clk 0:00:02.2]} 53. Bg4+ {[%clk 0:00:40.2]} 53... Kf2 {[%clk 0:00:01.2]} 54.
Bd1 {[%clk 0:00:37.6]} 54... Ke1 {[%clk 0:00:01]} 55. Bf3 {[%clk 0:00:36.8]} 1-0

[Event "*** Titled Tuesday Blitz"]
[Site "Chess.com"]
[Date "2021.04.20"]
[Round "7"]
[White "eldur16"]
[Black "jacky72"]
[Result "1-0"]
[WhiteElo "2610"]
[BlackElo "2708"]
[TimeControl "180+1"]
[EndTime "11:17:12 PDT"]
[Termination "eldur16 won on time"]

1. d4 {[%clk 0:03:00.9]} 1... Nf6 {[%clk 0:02:59.5]} 2. c4 {[%clk 0:03:00.5]}
2... g6 {[%clk 0:02:59.4]} 3. Nc3 {[%clk 0:02:59.8]} 3... Bg7 {[%clk 0:02:58.8]}
4. e4 {[%clk 0:02:59.8]} 4... O-O {[%clk 0:02:59.7]} 5. f3 {[%clk 0:02:57.9]}
5... d6 {[%clk 0:02:59.8]} 6. Nge2 {[%clk 0:02:57.2]} 6... c5 {[%clk 0:02:59.8]}
7. d5 {[%clk 0:02:56.8]} 7... e6 {[%clk 0:02:57.6]} 8. Ng3 {[%clk 0:02:56.7]}
8... exd5 {[%clk 0:02:57.4]} 9. cxd5 {[%clk 0:02:56.8]} 9... a6 {[%clk
0:02:57.9]} 10. a4 {[%clk 0:02:55.9]} 10... h5 {[%clk 0:02:42.2]} 11. Be2 {[%clk
0:02:55.7]} 11... h4 {[%clk 0:02:39.8]} 12. Nf1 {[%clk 0:02:55.2]} 12... Nbd7
{[%clk 0:02:37.4]} 13. Ne3 {[%clk 0:02:54.1]} 13... Rb8 {[%clk 0:02:36.4]} 14.
Nc4 {[%clk 0:02:46.7]} 14... h3 {[%clk 0:02:28.8]} 15. g3 {[%clk 0:02:44.4]}
15... Qe7 {[%clk 0:02:18.8]} 16. Bf4 {[%clk 0:02:41]} 16... Ne8 {[%clk
0:02:18.9]} 17. O-O {[%clk 0:02:26.2]} 17... b5 {[%clk 0:02:18.3]} 18. axb5
{[%clk 0:02:24.5]} 18... axb5 {[%clk 0:02:19.2]} 19. Na5 {[%clk 0:02:24.4]}
19... b4 {[%clk 0:02:07.7]} 20. Nc6 {[%clk 0:02:17]} 20... Qf6 {[%clk
0:02:07.8]} 21. Nxb8 {[%clk 0:02:09.5]} 21... bxc3 {[%clk 0:02:00.1]} 22. Nxd7
{[%clk 0:02:07]} 22... Bxd7 {[%clk 0:02:01]} 23. bxc3 {[%clk 0:02:05.5]} 23...
Qxc3 {[%clk 0:02:01.9]} 24. Ra7 {[%clk 0:01:59]} 24... Bd4+ {[%clk 0:01:53.7]}
25. Kh1 {[%clk 0:01:58]} 25... Nf6 {[%clk 0:01:54.3]} 26. Qd2 {[%clk 0:01:42]}
26... Qxd2 {[%clk 0:01:33.7]} 27. Bxd2 {[%clk 0:01:41.1]} 27... Rb8 {[%clk
0:01:34.6]} 28. Bg5 {[%clk 0:01:17.6]} 28... Be8 {[%clk 0:01:13.5]} 29. Rd1
{[%clk 0:01:16.2]} 29... Rb2 {[%clk 0:01:00.1]} 30. Bf1 {[%clk 0:01:15.7]} 30...
Nh7 {[%clk 0:00:54]} 31. Bd2 {[%clk 0:01:07.4]} 31... Rb3 {[%clk 0:00:47.3]} 32.
f4 {[%clk 0:01:03.6]} 32... Bb5 {[%clk 0:00:43.3]} 33. Bxb5 {[%clk 0:00:59.5]}
33... Rxb5 {[%clk 0:00:44.2]} 34. e5 {[%clk 0:00:54.8]} 34... dxe5 {[%clk
0:00:27.7]} 35. d6 {[%clk 0:00:54.4]} 35... Nf8 {[%clk 0:00:16.4]} 36. d7 {[%clk
0:00:51.4]} 36... Nxd7 {[%clk 0:00:16.4]} 37. Rxd7 {[%clk 0:00:50]} 37... e4
{[%clk 0:00:17.3]} 38. Re7 {[%clk 0:00:48]} 38... f5 {[%clk 0:00:14.5]} 39. Be3
{[%clk 0:00:38.6]} 39... Kf8 {[%clk 0:00:12.3]} 40. Rc7 {[%clk 0:00:36.2]} 40...
Ke8 {[%clk 0:00:06.7]} 41. Bg1 {[%clk 0:00:31.5]} 41... e3 {[%clk 0:00:05.1]}
42. Re1 {[%clk 0:00:29.6]} 42... Rb3 {[%clk 0:00:05.6]} 43. Rc6 {[%clk
0:00:19.8]} 43... Kd7 {[%clk 0:00:04.9]} 44. Rxg6 {[%clk 0:00:19.4]} 44... c4
{[%clk 0:00:05.5]} 45. Rh6 {[%clk 0:00:15.4]} 45... c3 {[%clk 0:00:02.8]} 46.
Rxh3 {[%clk 0:00:15.1]} 46... c2 {[%clk 0:00:03.2]} 47. Rc1 {[%clk 0:00:14.1]}
47... Rc3 {[%clk 0:00:01.2]} 48. Kg2 {[%clk 0:00:13.2]} 1-0

[Event "*** Titled Tuesday Blitz"]
[Site "Chess.com"]
[Date "2021.04.20"]
[Round "7"]
[White "Komiagina_Maria"]
[Black "WisdomGame"]
[Result "0-1"]
[WhiteElo "2223"]
[BlackElo "2102"]
[TimeControl "180+1"]
[EndTime "11:17:13 PDT"]
[Termination "WisdomGame won on time"]

1. e4 {[%clk 0:02:59.2]} 1... Nf6 {[%clk 0:02:58.9]} 2. e5 {[%clk 0:02:56.9]}
2... Nd5 {[%clk 0:02:58.9]} 3. d4 {[%clk 0:02:56.8]} 3... d6 {[%clk 0:02:57.9]}
4. c4 {[%clk 0:02:56.1]} 4... Nb6 {[%clk 0:02:57.8]} 5. exd6 {[%clk 0:02:56.1]}
5... exd6 {[%clk 0:02:58.7]} 6. h3 {[%clk 0:02:53.8]} 6... Nc6 {[%clk
0:02:58.9]} 7. Be3 {[%clk 0:02:53.6]} 7... Be7 {[%clk 0:02:58.2]} 8. Nc3 {[%clk
0:02:52.9]} 8... O-O {[%clk 0:02:58.5]} 9. Nf3 {[%clk 0:02:51.7]} 9... Bf6
{[%clk 0:02:58.8]} 10. Be2 {[%clk 0:02:49.9]} 10... Re8 {[%clk 0:02:58.6]} 11.
O-O {[%clk 0:02:49.1]} 11... g6 {[%clk 0:02:57.8]} 12. Rc1 {[%clk 0:02:45.8]}
12... Bf5 {[%clk 0:02:56.8]} 13. Qd2 {[%clk 0:02:39.7]} 13... Qd7 {[%clk
0:02:46.4]} 14. b3 {[%clk 0:02:35]} 14... Re7 {[%clk 0:02:42.5]} 15. Bg5 {[%clk
0:02:25.9]} 15... Bxg5 {[%clk 0:02:40.1]} 16. Qxg5 {[%clk 0:02:25]} 16... Rae8
{[%clk 0:02:38.3]} 17. Rfe1 {[%clk 0:02:14.9]} 17... Nb4 {[%clk 0:02:20.4]} 18.
a3 {[%clk 0:01:57]} 18... Nc2 {[%clk 0:02:17.2]} 19. g4 {[%clk 0:01:28.5]} 19...
Nxe1 {[%clk 0:02:11.1]} 20. Rxe1 {[%clk 0:01:27.9]} 20... Bd3 {[%clk 0:01:59.7]}
21. Bxd3 {[%clk 0:01:19.2]} 21... Rxe1+ {[%clk 0:02:00.6]} 22. Nxe1 {[%clk
0:01:19]} 22... Rxe1+ {[%clk 0:02:01.5]} 23. Kg2 {[%clk 0:01:18.1]} 23... Qe7
{[%clk 0:01:59.5]} 24. Qf4 {[%clk 0:01:10.9]} 24... Ra1 {[%clk 0:01:48.5]} 25.
Ne4 {[%clk 0:01:08.4]} 25... Kg7 {[%clk 0:01:43.7]} 26. g5 {[%clk 0:01:06.4]}
26... Nd7 {[%clk 0:01:40.6]} 27. h4 {[%clk 0:01:00.9]} 27... f5 {[%clk
0:01:37.3]} 28. Ng3 {[%clk 0:00:47.3]} 28... Qe1 {[%clk 0:01:06.6]} 29. h5
{[%clk 0:00:46.1]} 29... Nf8 {[%clk 0:00:51.2]} 30. h6+ {[%clk 0:00:44.2]} 30...
Kg8 {[%clk 0:00:46.1]} 31. d5 {[%clk 0:00:42.9]} 31... Qe5 {[%clk 0:00:42.7]}
32. Qd2 {[%clk 0:00:39.5]} 32... Nd7 {[%clk 0:00:35.5]} 33. Ne2 {[%clk 0:00:37]}
33... Nc5 {[%clk 0:00:29.5]} 34. f4 {[%clk 0:00:30.5]} 34... Qe7 {[%clk
0:00:28.5]} 35. Ng3 {[%clk 0:00:14.7]} 35... Rxa3 {[%clk 0:00:19.5]} 36. Qb2
{[%clk 0:00:12.8]} 36... Rxb3 {[%clk 0:00:19.1]} 37. Qa2 {[%clk 0:00:07.3]}
37... Rxd3 {[%clk 0:00:14.9]} 38. Qxa7 {[%clk 0:00:06.7]} 38... Rd2+ {[%clk
0:00:10.5]} 39. Kh3 {[%clk 0:00:06.3]} 39... Ne4 {[%clk 0:00:07.8]} 40. Qb8+
{[%clk 0:00:05.3]} 40... Qf8 {[%clk 0:00:07.6]} 41. Qxc7 {[%clk 0:00:04.5]}
41... Nxg3 {[%clk 0:00:07.2]} 42. Kxg3 {[%clk 0:00:03.9]} 42... Rd3+ {[%clk
0:00:07.5]} 43. Kf2 {[%clk 0:00:03.1]} 43... Rd4 {[%clk 0:00:07]} 0-1